[Event "Caplin Hastings Masters 2023-24"]
[Site "Hastings"]
[Date "2024.01.02"]
[Round "6.16"]
[White "Brown, Thomas"]
[Black "Arkell, Keith C"]
[Result "1-0"]
[ECO "A40"]
[WhiteElo "2095"]
[BlackElo "2371"]
[Annotator "RC"]
[PlyCount "127"]
[EventDate "2023.12.18"]
[EventType "swiss"]
[EventCountry "ENG"]
[SourceTitle "playchess.com"]
[Source "ChessBase"]
[SourceQuality "1"]
[TimeControl "40/6000+30:3000+30"]

1. d4 {[%emt 0:00:03]} e6 {[%emt 0:00:39]} 2. c4 {[%emt 0:00:11]} Bb4+ {[%emt 0:00:04]} 3. Nc3 {[%emt 0:00:09]} c5 {[%emt 0:00:04]} 4. a3 {[%emt 0:00:06]} Bxc3+ {[%emt 0:00:05]} 5. bxc3 {[%emt 0:00:06]} f5 {[%emt 0:00:08]} 6. e4 {[%emt 0:00:22]} d6 {[%emt 0:00:24]} 7. exf5 {[%emt 0:03:11]} exf5 {[%emt 0:00:04]} 8. dxc5 {[%emt 0:06:03]} dxc5 {[%emt 0:00:47]} 9. Qxd8+ {[%emt 0:00:55]} Kxd8 {[%emt 0:00:04]} 10. Bg5+ {[%emt 0:03:30]} Ke8 {[%emt 0:01:46]} 11. O-O-O {[%emt 0:02:24]} Nc6 {[%emt 0:00:06]} 12. Be2 {[%emt 0:01:53]} Nge7 {[%emt 0:10:01]} 13. Nh3 {[%emt 0:02:53]} Kf7 {[%emt 0:05:06]} 14. Bxe7 {[%emt 0:04:29]} Nxe7 {[%emt 0:13:33]} 15. Ng5+ {[%emt 0:01:56]} Ke8 {[%emt 0:00:06]} 16. Rd6 {[%emt 0:11:27]} Bd7 {[%emt 0:05:11]} 17. Bf3 {[%emt 0:05:46]} Bc6 {[%emt 0:18:56]} 18. Bxc6+ {[%emt 0:12:40]} bxc6 {[%emt 0:00:05]} 19. Re1 {[%emt 0:09:56]} Rc8 {[%emt 0:02:31]} 20. Rde6 {[%emt 0:04:16]} Rc7 {[%emt 0:00:08]} 21. R6e5 {[%emt 0:00:18]} Rd7 {[%emt 0:09:15]} 22. Rxf5 {[%emt 0:06:55]} h6 {[%emt 0:06:04]} 23. Nf3 {[%emt 0:00:25]} Rf8 {[%emt 0:01:35]} 24. Rxc5 {[%emt 0:02:21]} Kd8 {[%emt 0:01:54]} 25. Rce5 {[%emt 0:03:13]} Ng6 {[%emt 0:00:42]} 26. R5e4 {[%emt 0:07:56]} Rf5 {[%emt 0:10:20]} 27. Rd1 {[%emt 0:06:55]} Rxd1+ {[%emt 0:00:28]} 28. Kxd1 {[%emt 0:00:04]} Ra5 {[%emt 0:00:27]} 29. Rg4 {[%emt 0:01:04]} Ne7 {[%emt 0:00:06]} 30. Kc2 {[%emt 0:02:23]} g6 {[%emt 0:01:25]} 31. Kb3 {[%emt 0:00:38]} Rf5 {[%emt 0:00:07]} 32. Rd4+ {[%emt 0:00:58]} Kc7 {[%emt 0:00:20]} 33. Rd2 {[%emt 0:01:00]} c5 {[%emt 0:00:17]} 34. Re2 {[%emt 0:06:11]} Nc6 {[%emt 0:00:36]} 35. Re6 {[%emt 0:01:08]} g5 {[%emt 0:05:03]} 36. h3 {[%emt 0:00:04]} Na5+ {[%emt 0:00:33]} 37. Ka2 {[%emt 0:00:51]} Nxc4 {[%emt 0:00:35]} 38. Rxh6 {[%emt 0:01:43]} Rf8 {[%emt 0:05:40]} 39. Re6 {[%emt 0:01:38]} a5 {[%emt 0:06:29]} 40. Re4 {[%emt 0:01:40]} Nd6 {[%emt 0:01:18]} 41. Re5 {[%emt 0:01:19]} Kc6 {[%emt 0:02:23]} 42. a4 {[%emt 0:04:16]} Rf4 {[%emt 0:03:16]} 43. Rxg5 {[%emt 0:03:52]} Rxa4+ {[%emt 0:00:10]} 44. Kb3 {[%emt 0:05:18]} Ra1 {[%emt 0:00:03]} 45. Ne5+ {[%emt 0:00:51]} Kc7 {[%emt 0:15:54]} 46. Rg7+ {[%emt 0:00:15]} Kb6 {[%emt 0:00:44]} 47. Nc4+ {[%emt 0:00:36]} Nxc4 {[%emt 0:00:05]} 48. Kxc4 {[%emt 0:00:07]} a4 {[%emt 0:01:34]} 49. Rg6+ {[%emt 0:01:22]} Kb7 {[%emt 0:00:54]} 50. Kxc5 {[%emt 0:02:53]} Rb1 {[%emt 0:03:16]} 51. Rg4 {[%emt 0:02:12]} a3 {[%emt 0:00:33]} 52. Ra4 {[%emt 0:00:09]} Rb2 {[%emt 0:06:16]} 53. Rxa3 {[%emt 0:07:07]} Rxf2 {[%emt 0:00:05]} 54. Ra4 {[%emt 0:01:25]} Rxg2 {[%emt 0:00:09]} 55. Rh4 {[%emt 0:00:05]} Kc7 {[%emt 0:00:25]} 56. Rh8 {[%emt 0:01:00]} Rg5+ {[%emt 0:00:08]} 57. Kb4 {[%emt 0:00:22]} Kd6 {[%emt 0:00:24]} 58. h4 {[%emt 0:00:10]} Rg7 {[%emt 0:00:09]} 59. h5 {[%emt 0:00:19]} Rb7+ {[%emt 0:00:23]} 60. Kc4 {[%emt 0:00:27]} Ke6 {[%emt 0:00:04]} 61. h6 {[%emt 0:03:01]} Kf6 {[%emt 0:00:12]} 62. Rd8 {[%emt 0:00:25]} Rh7 {[%emt 0:01:46]} 63. Kd5 {[%emt 0:00:28]} Ra7 {[%emt 0:00:03]} 64. c4 {[%emt 0:00:47]} 1-0

[Event "Caplin Hastings Masters 2023-24"]
[Site "Hastings"]
[Date "2024.01.02"]
[Round "6.17"]
[White "Unuk, Laura"]
[Black "Pert, Max"]
[Result "1/2-1/2"]
[ECO "A03"]
[WhiteElo "2345"]
[BlackElo "1950"]
[Annotator "RC"]
[PlyCount "93"]
[EventDate "2023.12.18"]
[EventType "swiss"]
[EventCountry "ENG"]
[SourceTitle "playchess.com"]
[Source "ChessBase"]
[SourceQuality "1"]
[TimeControl "40/6000+30:3000+30"]

1. Nf3 {[%emt 0:08:38]} d5 {[%emt 0:00:38]} 2. e3 {[%emt 0:00:29]} Nf6 {[%emt 0:01:24]} 3. b3 {[%emt 0:01:06]} g6 {[%emt 0:02:21]} 4. Bb2 {[%emt 0:03:39]} Bg7 {[%emt 0:02:35]} 5. Be2 {[%emt 0:00:44]} c5 {[%emt 0:04:21]} 6. O-O {[%emt 0:03:30]} Nc6 {[%emt 0:02:39]} 7. Ne5 {[%emt 0:10:40]} Qc7 {[%emt 0:11:04]} 8. f4 {[%emt 0:02:48]} O-O {[%emt 0:06:55]} 9. Qc1 {[%emt 0:15:16]} Rd8 {[%emt 0:16:31]} 10. Bf3 {[%emt 0:02:20]} d4 {[%emt 0:03:47]} 11. Bxc6 {[%emt 0:10:16]} bxc6 {[%emt 0:00:06]} 12. d3 {[%emt 0:05:41]} Nh5 {[%emt 0:17:03]} 13. Nc4 {[%emt 0:06:23]} Bh6 {[%emt 0:06:59]} 14. Nba3 {[%emt 0:12:12]} f6 {[%emt 0:05:01]} 15. Qe1 {[%emt 0:04:13]} dxe3 {[%emt 0:08:25]} 16. g3 {[%emt 0:00:06]} Nxf4 {[%emt 0:01:04]} 17. gxf4 {[%emt 0:02:23]} Bxf4 {[%emt 0:00:07]} 18. Rxf4 {[%emt 0:00:25]} Qxf4 {[%emt 0:00:38]} 19. Qxe3 {[%emt 0:00:31]} Qg4+ {[%emt 0:02:25]} 20. Qg3 {[%emt 0:00:52]} Qh5 {[%emt 0:04:36]} 21. Ne3 {[%emt 0:00:35]} e5 {[%emt 0:02:23]} 22. Nac4 {[%emt 0:04:10]} Be6 {[%emt 0:01:28]} 23. Rf1 {[%emt 0:00:22]} Kg7 {[%emt 0:03:05]} 24. Nd2 {[%emt 0:05:37]} Bd5 {[%emt 0:01:54]} 25. Ng4 {[%emt 0:01:20]} Rf8 {[%emt 0:00:52]} 26. c4 {[%emt 0:05:32]} Qg5 {[%emt 0:01:00]} 27. cxd5 {[%emt 0:00:37]} Qxd2 {[%emt 0:00:08]} 28. Bxe5 {[%emt 0:00:06]} fxe5 {[%emt 0:01:57]} 29. Qxe5+ {[%emt 0:00:21]} Kg8 {[%emt 0:00:05]} 30. Qe6+ {[%emt 0:00:01]} Kg7 {[%emt 0:00:38]} 31. Qe7+ {[%emt 0:01:51]} Kg8 {[%emt 0:00:06]} 32. Qe6+ {[%emt 0:01:19]} Kg7 {[%emt 0:00:05]} 33. Qe7+ {[%emt 0:01:11]} Kg8 {[%emt 0:00:05]} 34. Nf6+ {[%emt 0:00:20]} Rxf6 {[%emt 0:00:06]} 35. Qxf6 {[%emt 0:00:14]} Qe3+ {[%emt 0:00:51]} 36. Kh1 {[%emt 0:00:30]} cxd5 {[%emt 0:00:27]} 37. Qf7+ {[%emt 0:00:26]} Kh8 {[%emt 0:00:08]} 38. Qf6+ {[%emt 0:01:05]} Kg8 {[%emt 0:00:07]} 39. Qf7+ {[%emt 0:01:07]} Kh8 {[%emt 0:00:05]} 40. Qxd5 {[%emt 0:00:24]} Re8 {[%emt 0:01:13]} 41. Qd6 {[%emt 0:18:32]} Kg8 {[%emt 0:03:02]} 42. a4 {[%emt 0:04:44]} Qd4 {[%emt 0:10:00]} 43. Qc6 {[%emt 0:03:13]} Qe5 {[%emt 0:01:19]} 44. a5 {[%emt 0:09:11]} Rd8 {[%emt 0:02:12]} 45. Qe4 {[%emt 0:08:34]} Qd5 {[%emt 0:02:35]} 46. Rc1 {[%emt 0:04:13]} Qxb3 {[%emt 0:01:51]} 47. Rxc5 {[%emt 0:00:26]} 1/2-1/2

[Event "Caplin Hastings Masters 2023-24"]
[Site "Hastings"]
[Date "2024.01.02"]
[Round "6.18"]
[White "White, Stuart A"]
[Black "Grutter, Tim"]
[Result "0-1"]
[ECO "A20"]
[WhiteElo "2014"]
[BlackElo "2342"]
[Annotator "RC"]
[PlyCount "110"]
[EventDate "2023.12.18"]
[EventType "swiss"]
[EventCountry "ENG"]
[SourceTitle "playchess.com"]
[Source "ChessBase"]
[SourceQuality "1"]
[TimeControl "40/6000+30:3000+30"]

1. c4 {[%emt 0:00:03]} e5 {[%emt 0:00:41]} 2. g3 {[%emt 0:00:06]} Nf6 {[%emt 0:00:19]} 3. Bg2 {[%emt 0:00:07]} c6 {[%emt 0:00:04]} 4. Nf3 {[%emt 0:00:26]} e4 {[%emt 0:00:07]} 5. Nd4 {[%emt 0:00:20]} Qb6 {[%emt 0:00:06]} 6. Nb3 {[%emt 0:01:50]} a5 {[%emt 0:00:33]} 7. d3 {[%emt 0:00:23]} a4 {[%emt 0:01:25]} 8. N3d2 {[%emt 0:00:45]} Bc5 {[%emt 0:02:50]} 9. Nxe4 {[%emt 0:17:10]} Nxe4 {[%emt 0:01:35]} 10. Bxe4 {[%emt 0:07:11]} d5 {[%emt 0:04:12]} 11. cxd5 {[%emt 0:06:22]} cxd5 {[%emt 0:00:47]} 12. Bxd5 {[%emt 0:04:47]} Bxf2+ {[%emt 0:01:55]} 13. Kd2 {[%emt 0:27:06]} Ra5 {[%emt 0:08:34]} 14. Nc3 {[%emt 0:12:22]} Na6 {[%emt 0:10:57]} 15. e4 {[%emt 0:02:57]} O-O {[%emt 0:02:36]} 16. Qf3 {[%emt 0:01:05]} Bd4 {[%emt 0:04:53]} 17. Ke2 {[%emt 0:04:50]} a3 {[%emt 0:02:05]} 18. Bb3 {[%emt 0:02:52]} Be6 {[%emt 0:00:58]} 19. Be3 {[%emt 0:02:03]} axb2 {[%emt 0:05:28]} 20. Rab1 {[%emt 0:00:20]} Bxb3 {[%emt 0:20:16]} 21. Rxb2 {[%emt 0:00:08]} Bxe3 {[%emt 0:00:12]} 22. Qxe3 {[%emt 0:01:50]} Qxe3+ {[%emt 0:00:18]} 23. Kxe3 {[%emt 0:00:03]} Be6 {[%emt 0:00:05]} 24. Rxb7 {[%emt 0:00:19]} Nc5 {[%emt 0:00:32]} 25. Rb4 {[%emt 0:02:26]} Ra3 {[%emt 0:06:03]} 26. Rc1 {[%emt 0:02:13]} Rfa8 {[%emt 0:01:09]} 27. Rb5 {[%emt 0:05:43]} Na4 {[%emt 0:08:34]} 28. Nd5 {[%emt 0:03:30]} Bxd5 {[%emt 0:01:20]} 29. Rxd5 {[%emt 0:00:12]} Rc3 {[%emt 0:00:49]} 30. Rb1 {[%emt 0:00:58]} Rcc8 {[%emt 0:03:07]} 31. Rb7 {[%emt 0:00:38]} Nc5 {[%emt 0:00:32]} 32. Rb5 {[%emt 0:00:58]} Ne6 {[%emt 0:00:38]} 33. Ra5 {[%emt 0:00:41]} g6 {[%emt 0:00:53]} 34. a4 {[%emt 0:00:28]} Kg7 {[%emt 0:01:31]} 35. Rxa8 {[%emt 0:00:22]} Rxa8 {[%emt 0:00:01]} 36. a5 {[%emt 0:00:06]} Nd8 {[%emt 0:00:45]} 37. a6 {[%emt 0:01:42]} Nc6 {[%emt 0:00:18]} 38. e5 {[%emt 0:01:05]} Rxa6 {[%emt 0:00:21]} 39. Ke4 {[%emt 0:00:42]} Kf8 {[%emt 0:02:06]} 40. Rc5 {[%emt 0:01:57]} Ra4+ {[%emt 0:01:51]} 41. Ke3 {[%emt 0:04:30]} Ne7 {[%emt 0:03:58]} 42. h3 {[%emt 0:02:01]} Nf5+ {[%emt 0:01:13]} 43. Kf3 {[%emt 0:01:44]} Ke7 {[%emt 0:01:32]} 44. g4 {[%emt 0:01:44]} Nd4+ {[%emt 0:00:38]} 45. Ke3 {[%emt 0:00:20]} Ke6 {[%emt 0:04:59]} 46. Rc7 {[%emt 0:03:51]} Rb4 {[%emt 0:04:26]} 47. Rc5 {[%emt 0:01:32]} Ke7 {[%emt 0:14:33]} 48. Rc7+ {[%emt 0:01:35]} Kf8 {[%emt 0:00:13]} 49. Rd7 {[%emt 0:04:58]} Ne6 {[%emt 0:00:27]} 50. Rd6 {[%emt 0:00:30]} Rb1 {[%emt 0:07:29]} 51. Kf3 {[%emt 0:01:55]} Re1 {[%emt 0:01:07]} 52. d4 {[%emt 0:00:26]} Ke7 {[%emt 0:00:24]} 53. h4 {[%emt 0:00:49]} Rf1+ {[%emt 0:04:18]} 54. Kg3 {[%emt 0:00:34]} Rd1 {[%emt 0:00:38]} 55. d5 {[%emt 0:00:39]} Nc7 {[%emt 0:00:17]} 0-1

[Event "Caplin Hastings Masters 2023-24"]
[Site "Hastings"]
[Date "2024.01.02"]
[Round "6.19"]
[White "Suez-Panama, Gilles"]
[Black "Villiers, Thomas"]
[Result "0-1"]
[ECO "A08"]
[WhiteElo "1868"]
[BlackElo "2230"]
[Annotator "RC"]
[PlyCount "97"]
[EventDate "2023.12.18"]
[EventType "swiss"]
[EventCountry "ENG"]
[SourceTitle "playchess.com"]
[Source "ChessBase"]
[SourceQuality "1"]
[TimeControl "40/6000+30:3000+30"]

1. Nf3 {[%emt 0:00:07]} c5 {[%emt 0:07:08]} 2. g3 {[%emt 0:00:32]} Nc6 {[%emt 0:01:25]} 3. Bg2 {[%emt 0:00:17]} g6 {[%emt 0:00:24]} 4. O-O {[%emt 0:00:29]} Bg7 {[%emt 0:00:04]} 5. d3 {[%emt 0:00:35]} e6 {[%emt 0:01:07]} 6. c3 {[%emt 0:04:01]} Nge7 {[%emt 0:02:41]} 7. e4 {[%emt 0:01:27]} d5 {[%emt 0:00:07]} 8. Nbd2 {[%emt 0:00:58]} O-O {[%emt 0:01:27]} 9. Re1 {[%emt 0:04:25]} Qc7 {[%emt 0:06:31]} 10. Qe2 {[%emt 0:04:28]} b5 {[%emt 0:01:38]} 11. Nf1 {[%emt 0:13:13]} Bb7 {[%emt 0:03:28]} 12. e5 {[%emt 0:02:41]} d4 {[%emt 0:00:43]} 13. Bg5 {[%emt 0:02:55]} Nd5 {[%emt 0:03:52]} 14. cxd4 {[%emt 0:02:13]} cxd4 {[%emt 0:00:11]} 15. Rac1 {[%emt 0:00:57]} h6 {[%emt 0:00:36]} 16. Bd2 {[%emt 0:05:56]} Rac8 {[%emt 0:01:31]} 17. h4 {[%emt 0:05:05]} Qb6 {[%emt 0:05:58]} 18. h5 {[%emt 0:07:49]} gxh5 {[%emt 0:01:51]} 19. Qe4 {[%emt 0:04:08]} Nde7 {[%emt 0:04:19]} 20. Qh4 {[%emt 0:01:06]} Ng6 {[%emt 0:03:49]} 21. Qxh5 {[%emt 0:00:26]} Ncxe5 {[%emt 0:01:46]} 22. Rxc8 {[%emt 0:12:57]} Nxf3+ {[%emt 0:00:11]} 23. Bxf3 {[%emt 0:00:11]} Rxc8 {[%emt 0:00:17]} 24. Bxb7 {[%emt 0:06:28]} Qxb7 {[%emt 0:00:07]} 25. Nh2 {[%emt 0:03:12]} Qd5 {[%emt 0:01:55]} 26. Qh3 {[%emt 0:06:32]} h5 {[%emt 0:00:55]} 27. g4 {[%emt 0:01:48]} Rc2 {[%emt 0:00:34]} 28. gxh5 {[%emt 0:03:18]} Rxd2 {[%emt 0:00:27]} 29. hxg6 {[%emt 0:00:13]} Qg5+ {[%emt 0:00:06]} 30. Qg4 {[%emt 0:03:49]} Qxg4+ {[%emt 0:01:29]} 31. Nxg4 {[%emt 0:00:03]} Rxd3 {[%emt 0:00:38]} 32. gxf7+ {[%emt 0:00:47]} Kxf7 {[%emt 0:00:01]} 33. Ne5+ {[%emt 0:04:13]} Bxe5 {[%emt 0:00:06]} 34. Rxe5 {[%emt 0:00:04]} a6 {[%emt 0:01:43]} 35. Re2 {[%emt 0:01:33]} Rd1+ {[%emt 0:00:24]} 36. Kg2 {[%emt 0:00:09]} Kf6 {[%emt 0:01:48]} 37. b3 {[%emt 0:01:29]} Kf5 {[%emt 0:00:30]} 38. f3 {[%emt 0:00:50]} b4 {[%emt 0:02:46]} 39. Kf2 {[%emt 0:00:26]} e5 {[%emt 0:05:41]} 40. Rb2 {[%emt 0:03:07]} Kf4 {[%emt 0:00:51]} 41. Re2 {[%emt 0:50:52]} Rc1 {[%emt 0:50:38]} 42. Re4+ {[%emt 0:00:18]} Kf5 {[%emt 0:00:05]} 43. Re2 {[%emt 0:00:39]} d3 {[%emt 0:00:14]} 44. Rd2 {[%emt 0:00:19]} Rc2 {[%emt 0:00:22]} 45. Ke3 {[%emt 0:00:18]} Rxd2 {[%emt 0:00:03]} 46. Kxd2 {[%emt 0:00:10]} Kf4 {[%emt 0:00:24]} 47. Kxd3 {[%emt 0:01:49]} Kxf3 {[%emt 0:00:03]} 48. Kc4 {[%emt 0:00:08]} e4 {[%emt 0:00:09]} 49. Kd4 {[%emt 0:00:15]} 0-1

[Event "Caplin Hastings Masters 2023-24"]
[Site "Hastings"]
[Date "2024.01.02"]
[Round "6.20"]
[White "Gormally, Daniel W"]
[Black "Liu, Tianyi"]
[Result "1-0"]
[ECO "D76"]
[WhiteElo "2442"]
[BlackElo "2022"]
[Annotator "RC"]
[PlyCount "81"]
[EventDate "2023.12.18"]
[EventType "swiss"]
[EventCountry "ENG"]
[SourceTitle "playchess.com"]
[Source "ChessBase"]
[SourceQuality "1"]
[TimeControl "40/6000+30:3000+30"]

1. d4 {[%emt 0:00:06]} Nf6 {[%emt 0:00:12]} 2. c4 {[%emt 0:00:06]} g6 {[%emt 0:00:04]} 3. Nf3 {[%emt 0:00:12]} Bg7 {[%emt 0:00:07]} 4. g3 {[%emt 0:00:14]} O-O {[%emt 0:03:01]} 5. Bg2 {[%emt 0:00:16]} d5 {[%emt 0:00:36]} 6. cxd5 {[%emt 0:00:28]} Nxd5 {[%emt 0:00:07]} 7. e4 {[%emt 0:00:04]} Nb6 {[%emt 0:00:04]} 8. O-O {[%emt 0:00:06]} Nc6 {[%emt 0:05:30]} 9. d5 {[%emt 0:00:13]} Na5 {[%emt 0:00:57]} 10. Nc3 {[%emt 0:00:15]} c6 {[%emt 0:01:05]} 11. Re1 {[%emt 0:00:13]} Re8 {[%emt 0:05:35]} 12. Bf4 {[%emt 0:01:46]} cxd5 {[%emt 0:07:29]} 13. exd5 {[%emt 0:01:24]} Bxc3 {[%emt 0:03:34]} 14. bxc3 {[%emt 0:00:07]} Nxd5 {[%emt 0:09:53]} 15. Bg5 {[%emt 0:00:10]} f6 {[%emt 0:19:01]} 16. Bh6 {[%emt 0:01:07]} Bg4 {[%emt 0:01:15]} 17. Qd4 {[%emt 0:13:58]} Bxf3 {[%emt 0:06:46]} 18. Bxf3 {[%emt 0:00:05]} Nb6 {[%emt 0:00:34]} 19. Qb4 {[%emt 0:09:08]} Nbc4 {[%emt 0:11:33]} 20. Rad1 {[%emt 0:00:22]} Qc7 {[%emt 0:05:25]} 21. Bd5+ {[%emt 0:08:39]} Kh8 {[%emt 0:00:13]} 22. Bf7 {[%emt 0:00:07]} Ne5 {[%emt 0:02:52]} 23. Bxe8 {[%emt 0:04:35]} Rxe8 {[%emt 0:02:43]} 24. Qb5 {[%emt 0:02:00]} Nac6 {[%emt 0:04:25]} 25. Qd5 {[%emt 0:04:50]} e6 {[%emt 0:00:22]} 26. Qe4 {[%emt 0:00:15]} g5 {[%emt 0:04:58]} 27. Re2 {[%emt 0:13:34]} Nf7 {[%emt 0:04:20]} 28. Red2 {[%emt 0:00:05]} Nce5 {[%emt 0:01:44]} 29. f4 {[%emt 0:01:08]} Qb6+ {[%emt 0:04:09]} 30. Rd4 {[%emt 0:04:21]} Nc6 {[%emt 0:03:45]} 31. fxg5 {[%emt 0:00:06]} Nxd4 {[%emt 0:00:57]} 32. cxd4 {[%emt 0:00:29]} fxg5 {[%emt 0:01:51]} 33. Bxg5 {[%emt 0:01:43]} Nxg5 {[%emt 0:00:36]} 34. Qe5+ {[%emt 0:00:07]} Kg8 {[%emt 0:00:03]} 35. Qxg5+ {[%emt 0:00:05]} Kh8 {[%emt 0:00:19]} 36. Qe5+ {[%emt 0:02:02]} Kg8 {[%emt 0:00:01]} 37. Rf1 {[%emt 0:02:02]} Rd8 {[%emt 0:02:19]} 38. Qg5+ {[%emt 0:02:11]} Kh8 {[%emt 0:00:06]} 39. Qf6+ {[%emt 0:00:33]} Kg8 {[%emt 0:00:01]} 40. Rf4 {[%emt 0:00:28]} h5 {[%emt 0:01:26]} 41. Qg6+ {[%emt 0:50:19]} 1-0

[Event "Caplin Hastings Masters 2023-24"]
[Site "Hastings"]
[Date "2024.01.02"]
[Round "6.21"]
[White "Boswell, Jacob Connor"]
[Black "Hng, Mei-Xian Eunice"]
[Result "1-0"]
[ECO "B07"]
[WhiteElo "2235"]
[BlackElo "2014"]
[Annotator "RC"]
[PlyCount "71"]
[EventDate "2023.12.18"]
[EventType "swiss"]
[EventCountry "ENG"]
[SourceTitle "playchess.com"]
[Source "ChessBase"]
[SourceQuality "1"]
[TimeControl "40/6000+30:3000+30"]

1. e4 {[%emt 0:00:02]} d6 {[%emt 0:00:08]} 2. d4 {[%emt 0:00:01]} Nf6 {[%emt 0:00:06]} 3. Nc3 {[%emt 0:00:40]} g6 {[%emt 0:00:04]} 4. Be3 {[%emt 0:00:16]} Bg7 {[%emt 0:00:05]} 5. Qd2 {[%emt 0:00:47]} c6 {[%emt 0:01:11]} 6. Bh6 {[%emt 0:00:18]} Bxh6 {[%emt 0:00:16]} 7. Qxh6 {[%emt 0:00:03]} Qa5 {[%emt 0:00:06]} 8. O-O-O {[%emt 0:02:40]} Be6 {[%emt 0:12:58]} 9. d5 {[%emt 0:12:37]} Bg4 {[%emt 0:17:04]} 10. Nf3 {[%emt 0:11:19]} Nbd7 {[%emt 0:07:52]} 11. h3 {[%emt 0:07:22]} Bxf3 {[%emt 0:03:33]} 12. gxf3 {[%emt 0:00:03]} c5 {[%emt 0:02:18]} 13. Qe3 {[%emt 0:02:53]} a6 {[%emt 0:05:02]} 14. f4 {[%emt 0:00:27]} Qc7 {[%emt 0:02:29]} 15. Re1 {[%emt 0:04:07]} O-O {[%emt 0:02:36]} 16. e5 {[%emt 0:02:19]} Nh5 {[%emt 0:01:01]} 17. h4 {[%emt 0:03:52]} b5 {[%emt 0:05:59]} 18. Bg2 {[%emt 0:24:07]} Rab8 {[%emt 0:07:57]} 19. Bf3 {[%emt 0:03:37]} Ng7 {[%emt 0:02:27]} 20. h5 {[%emt 0:00:31]} b4 {[%emt 0:02:28]} 21. Nd1 {[%emt 0:01:53]} c4 {[%emt 0:03:26]} 22. hxg6 {[%emt 0:05:50]} fxg6 {[%emt 0:00:17]} 23. Bg4 {[%emt 0:00:54]} b3 {[%emt 0:18:30]} 24. axb3 {[%emt 0:01:03]} cxb3 {[%emt 0:00:05]} 25. c3 {[%emt 0:00:01]} Rfe8 {[%emt 0:03:40]} 26. Rxh7 {[%emt 0:12:13]} Nf8 {[%emt 0:06:17]} 27. Rh4 {[%emt 0:06:09]} Qc4 {[%emt 0:03:28]} 28. Qh3 {[%emt 0:04:32]} Qxf4+ {[%emt 0:01:09]} 29. Re3 {[%emt 0:02:08]} Nf5 {[%emt 0:00:40]} 30. Bxf5 {[%emt 0:00:55]} Qxf5 {[%emt 0:00:04]} 31. Rh8+ {[%emt 0:00:17]} Kg7 {[%emt 0:00:06]} 32. Qh6+ {[%emt 0:00:15]} Kf7 {[%emt 0:00:04]} 33. Rh7+ {[%emt 0:00:31]} Nxh7 {[%emt 0:00:18]} 34. Qxh7+ {[%emt 0:00:02]} Kf8 {[%emt 0:00:06]} 35. Qh8+ {[%emt 0:00:09]} Kf7 {[%emt 0:00:24]} 36. e6+ {[%emt 0:00:10]} 1-0

[Event "Caplin Hastings Masters 2023-24"]
[Site "Hastings"]
[Date "2024.01.02"]
[Round "6.22"]
[White "Hobson, Kenneth"]
[Black "Rami, Talab"]
[Result "1-0"]
[ECO "C02"]
[WhiteElo "2130"]
[BlackElo "1947"]
[Annotator "NA RC"]
[PlyCount "81"]
[EventDate "2023.12.18"]
[EventType "swiss"]
[EventCountry "ENG"]
[SourceTitle "playchess.com"]
[Source "ChessBase"]
[SourceQuality "1"]
[TimeControl "40/6000+30:3000+30"]

1. e4 {[%emt 0:02:17]} e6 {[%emt 0:00:16]} 2. d4 {[%emt 0:04:02]} d5 {[%emt 0:00:21]} 3. e5 {[%emt 0:00:20]} c5 {[%emt 0:00:42]} 4. c3 {[%emt 0:00:07]} Nc6 {[%emt 0:00:32]} 5. Nf3 {[%emt 0:00:54]} Qb6 {[%emt 0:00:46]} 6. Bd3 {[%emt 0:00:49]} cxd4 {[%emt 0:00:49]} 7. O-O {[%emt 0:01:14]} Bd7 {[%emt 0:00:45]} 8. Re1 {[%emt 0:00:31]} Rc8 {[%emt 0:01:08]} 9. a3 {[%emt 0:03:56]} Nh6 {[%emt 0:01:33]} 10. b4 {[%emt 0:16:50]} dxc3 {[%emt 0:03:09]} 11. Nxc3 {[%emt 0:03:22]} Ng4 {[%emt 0:01:33]} 12. Ra2 {[%emt 0:04:02]} Nxb4 {[%emt 0:06:50]} 13. axb4 {[%emt 0:08:25]} Rxc3 {[%emt 0:00:26]} 14. h3 {[%emt 0:02:57]} Nh6 {[%emt 0:03:47]} 15. Be3 {[%emt 0:00:47]} Qd8 {[%emt 0:09:21]} 16. Rxa7 {[%emt 0:04:16]} Bxb4 {[%emt 0:01:41]} 17. Qb1 {[%emt 0:04:18]} Be7 {[%emt 0:07:55]} 18. Qxb7 {[%emt 0:07:30]} Bc6 {[%emt 0:16:42]} 19. Bb5 {[%emt 0:02:09]} Bxb5 {[%emt 0:00:48]} 20. Qxb5+ {[%emt 0:09:47]} Kf8 {[%emt 0:00:38]} 21. Rxe7 {[%emt 0:02:28]} Rxe3 {[%emt 0:04:13]} 22. Rb7 {[%emt 0:00:23]} Rxe1+ {[%emt 0:00:59]} 23. Nxe1 {[%emt 0:00:06]} g6 {[%emt 0:00:35]} 24. Rb8 {[%emt 0:00:14]} Kg7 {[%emt 0:00:07]} 25. Rxd8 {[%emt 0:00:06]} Rxd8 {[%emt 0:00:03]} 26. g4 {[%emt 0:00:28]} Ng8 {[%emt 0:01:21]} 27. Qc5 {[%emt 0:00:29]} Rd7 {[%emt 0:00:39]} 28. Nf3 {[%emt 0:01:04]} Ne7 {[%emt 0:00:18]} 29. Nd4 {[%emt 0:00:25]} h5 {[%emt 0:00:43]} 30. gxh5 {[%emt 0:00:36]} gxh5 {[%emt 0:00:07]} 31. Qc1 {[%emt 0:00:52]} Ng6 {[%emt 0:00:38]} 32. Qg5 {[%emt 0:00:16]} Ra7 {[%emt 0:00:13]} 33. Qf6+ {[%emt 0:00:47]} Kh7 {[%emt 0:00:05]} 34. Nf3 {[%emt 0:00:28]} Rb7 {[%emt 0:00:21]} 35. Kh2 {[%emt 0:00:42]} d4 {[%emt 0:01:58]} 36. Ng5+ {[%emt 0:00:46]} Kh6 {[%emt 0:00:09]} 37. Nxf7+ {[%emt 0:00:19]} Kh7 {[%emt 0:00:03]} 38. Ng5+ {[%emt 0:00:20]} Kh6 {[%emt 0:00:04]} 39. Nxe6 {[%emt 0:00:38]} d3 {[%emt 0:00:09]} 40. Qg5+ {[%emt 0:00:23]} Kh7 {[%emt 0:00:05]} 41. Qxh5+ {[%emt 0:50:04]} 1-0